{"text_format":"1","workbook":"xlsx","n_sheets":5,"sheets":["énoncé","km parcourus","indemnités","salariés","barèmes"],"not_rendered":{"charts":0,"images":0,"macros":1,"external_links":0,"defined_names":0,"comments":0,"pivot_tables":0},"unopened":[],"bounds":{"document_bytes":16777216,"sheet_cells":100000,"rows_first":2000,"rows_last":500,"rows_between":2000,"halvings":0,"cell_chars":16384,"cell_head_chars":4096},"cells_cut":0,"cells_raw":0,"read":"whole","date_system":"1900"}

{"sheet":"énoncé","index":0,"n_rows":10,"n_cols":3,"rows_kept":10,"cut":false,"hidden":false,"merged":[]}
["1) complétez la feuille permettant le calcul des indemnités à verser sur le mois"]
["2) élaborer la macro permettant d'archiver les indemnités par mois et par an"]
["3) écrire la fonction Ikv(typev, cv, km) qui renvoie l'indemnité à payer au salarié"]
["4) écrire la fonction qui affiche l'indemnité après saisie des éléments"]
["5) élaborer les récapitulatifs nécessaires"]
[]
["NB : "]
[null,"la feuille km parcourus est saisie "]
[null,"les barèmes applicables changent chaque année "]
[null,null,"     => il faut concevoir une table gérant ces barèmes dans le temps"]

{"sheet":"km parcourus","index":1,"n_rows":31,"n_cols":2,"rows_kept":31,"cut":false,"hidden":false,"merged":[]}
["salariés","Kilomètrages parcouru mars"]
["salarié 1",480]
["salarié 2",815]
["salarié 3",135]
["salarié 4",94]
["salarié 5",392]
["salarié 6",610]
["salarié 7",423]
["salarié 8",90]
["salarié 9",721]
["salarié 10",426]
["salarié 11",222]
["salarié 12",212]
["salarié 13",455]
["salarié 14",1021]
["salarié 15",789]
["salarié 16",144]
["salarié 17",604]
["salarié 18",22]
["salarié 19",1010]
["salarié 20",14]
["salarié 21",473]
["salarié 22",686]
["salarié 23",608]
["salarié 24",161]
["salarié 25",471]
["salarié 26",72]
["salarié 27",542]
["salarié 28",345]
["salarié 29",553]
["salarié 30",869]

{"sheet":"indemnités","index":2,"n_rows":39,"n_cols":8,"rows_kept":39,"cut":false,"hidden":false,"merged":[]}
["Date","2021-03-28",null,null,null,null,null,"Function Ikv(CV As Integer, TypeV As String, Nbkm As Single, Bareme As Range)"]
["Année",{"$f":"YEAR(B1)","v":2021},"Mois",{"$f":"MONTH(B1)","v":3},null,null,null,"' pour simplifier et se concentrer sur les conditions"]
["salariés","nombre de cv","Type véhicule","Kilomètrages parcouru mars","indemnités km","avec la fonction ikv",null,"' il est préférable de déclarer la table bareme dans la fonction"]
["salarié 1",{"$f":"VLOOKUP(Tableau25[[#This Row],[salariés]],Tableau1[],2,0)","v":3},{"$f":"VLOOKUP(Tableau25[[#This Row],[salariés]],Tableau1[],3,0)","v":"Essence"},{"$f":"VLOOKUP(Tableau25[[#This Row],[salariés]],Tableau2[],2,0)","v":480},{"$f":"ROUND(IF(Tableau25[[#This Row],[Type véhicule]]=\"électrique\",1.2,1)*IF(Tableau25[[#This Row],[Kilomètrages parcouru mars]]<=5000,VLOOKUP(Tableau25[[#This Row],[nombre de cv]],Tableau3[],2)*Tableau25[[#This Row],[Kilomètrages parcouru mars]],IF(Tableau25[[#This Row],[Kilomètrages parcouru mars]]<=20000,VLOOKUP(Tableau25[[#This Row],[nombre de cv]],Tableau3[],3)*Tableau25[[#This Row],[Kilomètrages parcouru mars]]+VLOOKUP(Tableau25[[#This Row],[nombre de cv]],Tableau3[],4),VLOOKUP(Tableau25[[#This Row],[nombre de cv]],Tableau3[],5)*Tableau25[[#This Row],[Kilomètrages parcouru mars]])),2)","v":218.88},{"$f":"ikv(Tableau25[[#This Row],[nombre de cv]],Tableau25[[#This Row],[Type véhicule]],Tableau25[[#This Row],[Kilomètrages parcouru mars]],Tableau3[])","v":218.88},null,"' cela permet aussi d'éviter d'avoir à déclarer l année"]
["salarié 2",{"$f":"VLOOKUP(Tableau25[[#This Row],[salariés]],Tableau1[],2,0)","v":5},{"$f":"VLOOKUP(Tableau25[[#This Row],[salariés]],Tableau1[],3,0)","v":"électrique"},{"$f":"VLOOKUP(Tableau25[[#This Row],[salariés]],Tableau2[],2,0)","v":815},{"$f":"ROUND(IF(Tableau25[[#This Row],[Type véhicule]]=\"électrique\",1.2,1)*IF(Tableau25[[#This Row],[Kilomètrages parcouru mars]]<=5000,VLOOKUP(Tableau25[[#This Row],[nombre de cv]],Tableau3[],2)*Tableau25[[#This Row],[Kilomètrages parcouru mars]],IF(Tableau25[[#This Row],[Kilomètrages parcouru mars]]<=20000,VLOOKUP(Tableau25[[#This Row],[nombre de cv]],Tableau3[],3)*Tableau25[[#This Row],[Kilomètrages parcouru mars]]+VLOOKUP(Tableau25[[#This Row],[nombre de cv]],Tableau3[],4),VLOOKUP(Tableau25[[#This Row],[nombre de cv]],Tableau3[],5)*Tableau25[[#This Row],[Kilomètrages parcouru mars]])),2)","v":535.94000000000005},{"$f":"ikv(Tableau25[[#This Row],[nombre de cv]],Tableau25[[#This Row],[Type véhicule]],Tableau25[[#This Row],[Kilomètrages parcouru mars]],Tableau3[])","v":535.94000000000005}]
["salarié 3",{"$f":"VLOOKUP(Tableau25[[#This Row],[salariés]],Tableau1[],2,0)","v":4},{"$f":"VLOOKUP(Tableau25[[#This Row],[salariés]],Tableau1[],3,0)","v":"Essence"},{"$f":"VLOOKUP(Tableau25[[#This Row],[salariés]],Tableau2[],2,0)","v":135},{"$f":"ROUND(IF(Tableau25[[#This Row],[Type véhicule]]=\"électrique\",1.2,1)*IF(Tableau25[[#This Row],[Kilomètrages parcouru mars]]<=5000,VLOOKUP(Tableau25[[#This Row],[nombre de cv]],Tableau3[],2)*Tableau25[[#This Row],[Kilomètrages parcouru mars]],IF(Tableau25[[#This Row],[Kilomètrages parcouru mars]]<=20000,VLOOKUP(Tableau25[[#This Row],[nombre de cv]],Tableau3[],3)*Tableau25[[#This Row],[Kilomètrages parcouru mars]]+VLOOKUP(Tableau25[[#This Row],[nombre de cv]],Tableau3[],4),VLOOKUP(Tableau25[[#This Row],[nombre de cv]],Tableau3[],5)*Tableau25[[#This Row],[Kilomètrages parcouru mars]])),2)","v":70.61},{"$f":"ikv(Tableau25[[#This Row],[nombre de cv]],Tableau25[[#This Row],[Type véhicule]],Tableau25[[#This Row],[Kilomètrages parcouru mars]],Tableau3[])","v":70.599999999999994}]
["salarié 4",{"$f":"VLOOKUP(Tableau25[[#This Row],[salariés]],Tableau1[],2,0)","v":6},{"$f":"VLOOKUP(Tableau25[[#This Row],[salariés]],Tableau1[],3,0)","v":"Essence"},{"$f":"VLOOKUP(Tableau25[[#This Row],[salariés]],Tableau2[],2,0)","v":94},{"$f":"ROUND(IF(Tableau25[[#This Row],[Type véhicule]]=\"électrique\",1.2,1)*IF(Tableau25[[#This Row],[Kilomètrages parcouru mars]]<=5000,VLOOKUP(Tableau25[[#This Row],[nombre de cv]],Tableau3[],2)*Tableau25[[#This Row],[Kilomètrages parcouru mars]],IF(Tableau25[[#This Row],[Kilomètrages parcouru mars]]<=20000,VLOOKUP(Tableau25[[#This Row],[nombre de cv]],Tableau3[],3)*Tableau25[[#This Row],[Kilomètrages parcouru mars]]+VLOOKUP(Tableau25[[#This Row],[nombre de cv]],Tableau3[],4),VLOOKUP(Tableau25[[#This Row],[nombre de cv]],Tableau3[],5)*Tableau25[[#This Row],[Kilomètrages parcouru mars]])),2)","v":53.96},{"$f":"ikv(Tableau25[[#This Row],[nombre de cv]],Tableau25[[#This Row],[Type véhicule]],Tableau25[[#This Row],[Kilomètrages parcouru mars]],Tableau3[])","v":53.96}]
["salarié 5",{"$f":"VLOOKUP(Tableau25[[#This Row],[salariés]],Tableau1[],2,0)","v":8},{"$f":"VLOOKUP(Tableau25[[#This Row],[salariés]],Tableau1[],3,0)","v":"diesel"},{"$f":"VLOOKUP(Tableau25[[#This Row],[salariés]],Tableau2[],2,0)","v":392},{"$f":"ROUND(IF(Tableau25[[#This Row],[Type véhicule]]=\"électrique\",1.2,1)*IF(Tableau25[[#This Row],[Kilomètrages parcouru mars]]<=5000,VLOOKUP(Tableau25[[#This Row],[nombre de cv]],Tableau3[],2)*Tableau25[[#This Row],[Kilomètrages parcouru mars]],IF(Tableau25[[#This Row],[Kilomètrages parcouru mars]]<=20000,VLOOKUP(Tableau25[[#This Row],[nombre de cv]],Tableau3[],3)*Tableau25[[#This Row],[Kilomètrages parcouru mars]]+VLOOKUP(Tableau25[[#This Row],[nombre de cv]],Tableau3[],4),VLOOKUP(Tableau25[[#This Row],[nombre de cv]],Tableau3[],5)*Tableau25[[#This Row],[Kilomètrages parcouru mars]])),2)","v":235.59},{"$f":"ikv(Tableau25[[#This Row],[nombre de cv]],Tableau25[[#This Row],[Type véhicule]],Tableau25[[#This Row],[Kilomètrages parcouru mars]],Tableau3[])","v":235.59}]
["salarié 6",{"$f":"VLOOKUP(Tableau25[[#This Row],[salariés]],Tableau1[],2,0)","v":10},{"$f":"VLOOKUP(Tableau25[[#This Row],[salariés]],Tableau1[],3,0)","v":"diesel"},{"$f":"VLOOKUP(Tableau25[[#This Row],[salariés]],Tableau2[],2,0)","v":610},{"$f":"ROUND(IF(Tableau25[[#This Row],[Type véhicule]]=\"électrique\",1.2,1)*IF(Tableau25[[#This Row],[Kilomètrages parcouru mars]]<=5000,VLOOKUP(Tableau25[[#This Row],[nombre de cv]],Tableau3[],2)*Tableau25[[#This Row],[Kilomètrages parcouru mars]],IF(Tableau25[[#This Row],[Kilomètrages parcouru mars]]<=20000,VLOOKUP(Tableau25[[#This Row],[nombre de cv]],Tableau3[],3)*Tableau25[[#This Row],[Kilomètrages parcouru mars]]+VLOOKUP(Tableau25[[#This Row],[nombre de cv]],Tableau3[],4),VLOOKUP(Tableau25[[#This Row],[nombre de cv]],Tableau3[],5)*Tableau25[[#This Row],[Kilomètrages parcouru mars]])),2)","v":366.61},{"$f":"ikv(Tableau25[[#This Row],[nombre de cv]],Tableau25[[#This Row],[Type véhicule]],Tableau25[[#This Row],[Kilomètrages parcouru mars]],Tableau3[])","v":366.61}]
["salarié 7",{"$f":"VLOOKUP(Tableau25[[#This Row],[salariés]],Tableau1[],2,0)","v":7},{"$f":"VLOOKUP(Tableau25[[#This Row],[salariés]],Tableau1[],3,0)","v":"diesel"},{"$f":"VLOOKUP(Tableau25[[#This Row],[salariés]],Tableau2[],2,0)","v":423},{"$f":"ROUND(IF(Tableau25[[#This Row],[Type véhicule]]=\"électrique\",1.2,1)*IF(Tableau25[[#This Row],[Kilomètrages parcouru mars]]<=5000,VLOOKUP(Tableau25[[#This Row],[nombre de cv]],Tableau3[],2)*Tableau25[[#This Row],[Kilomètrages parcouru mars]],IF(Tableau25[[#This Row],[Kilomètrages parcouru mars]]<=20000,VLOOKUP(Tableau25[[#This Row],[nombre de cv]],Tableau3[],3)*Tableau25[[#This Row],[Kilomètrages parcouru mars]]+VLOOKUP(Tableau25[[#This Row],[nombre de cv]],Tableau3[],4),VLOOKUP(Tableau25[[#This Row],[nombre de cv]],Tableau3[],5)*Tableau25[[#This Row],[Kilomètrages parcouru mars]])),2)","v":254.22},{"$f":"ikv(Tableau25[[#This Row],[nombre de cv]],Tableau25[[#This Row],[Type véhicule]],Tableau25[[#This Row],[Kilomètrages parcouru mars]],Tableau3[])","v":254.22}]
["salarié 8",{"$f":"VLOOKUP(Tableau25[[#This Row],[salariés]],Tableau1[],2,0)","v":3},{"$f":"VLOOKUP(Tableau25[[#This Row],[salariés]],Tableau1[],3,0)","v":"Essence"},{"$f":"VLOOKUP(Tableau25[[#This Row],[salariés]],Tableau2[],2,0)","v":90},{"$f":"ROUND(IF(Tableau25[[#This Row],[Type véhicule]]=\"électrique\",1.2,1)*IF(Tableau25[[#This Row],[Kilomètrages parcouru mars]]<=5000,VLOOKUP(Tableau25[[#This Row],[nombre de cv]],Tableau3[],2)*Tableau25[[#This Row],[Kilomètrages parcouru mars]],IF(Tableau25[[#This Row],[Kilomètrages parcouru mars]]<=20000,VLOOKUP(Tableau25[[#This Row],[nombre de cv]],Tableau3[],3)*Tableau25[[#This Row],[Kilomètrages parcouru mars]]+VLOOKUP(Tableau25[[#This Row],[nombre de cv]],Tableau3[],4),VLOOKUP(Tableau25[[#This Row],[nombre de cv]],Tableau3[],5)*Tableau25[[#This Row],[Kilomètrages parcouru mars]])),2)","v":41.04},{"$f":"ikv(Tableau25[[#This Row],[nombre de cv]],Tableau25[[#This Row],[Type véhicule]],Tableau25[[#This Row],[Kilomètrages parcouru mars]],Tableau3[])","v":41.04}]
["salarié 9",{"$f":"VLOOKUP(Tableau25[[#This Row],[salariés]],Tableau1[],2,0)","v":10},{"$f":"VLOOKUP(Tableau25[[#This Row],[salariés]],Tableau1[],3,0)","v":"diesel"},{"$f":"VLOOKUP(Tableau25[[#This Row],[salariés]],Tableau2[],2,0)","v":721},{"$f":"ROUND(IF(Tableau25[[#This Row],[Type véhicule]]=\"électrique\",1.2,1)*IF(Tableau25[[#This Row],[Kilomètrages parcouru mars]]<=5000,VLOOKUP(Tableau25[[#This Row],[nombre de cv]],Tableau3[],2)*Tableau25[[#This Row],[Kilomètrages parcouru mars]],IF(Tableau25[[#This Row],[Kilomètrages parcouru mars]]<=20000,VLOOKUP(Tableau25[[#This Row],[nombre de cv]],Tableau3[],3)*Tableau25[[#This Row],[Kilomètrages parcouru mars]]+VLOOKUP(Tableau25[[#This Row],[nombre de cv]],Tableau3[],4),VLOOKUP(Tableau25[[#This Row],[nombre de cv]],Tableau3[],5)*Tableau25[[#This Row],[Kilomètrages parcouru mars]])),2)","v":433.32},{"$f":"ikv(Tableau25[[#This Row],[nombre de cv]],Tableau25[[#This Row],[Type véhicule]],Tableau25[[#This Row],[Kilomètrages parcouru mars]],Tableau3[])","v":433.32}]
["salarié 10",{"$f":"VLOOKUP(Tableau25[[#This Row],[salariés]],Tableau1[],2,0)","v":5},{"$f":"VLOOKUP(Tableau25[[#This Row],[salariés]],Tableau1[],3,0)","v":"électrique"},{"$f":"VLOOKUP(Tableau25[[#This Row],[salariés]],Tableau2[],2,0)","v":426},{"$f":"ROUND(IF(Tableau25[[#This Row],[Type véhicule]]=\"électrique\",1.2,1)*IF(Tableau25[[#This Row],[Kilomètrages parcouru mars]]<=5000,VLOOKUP(Tableau25[[#This Row],[nombre de cv]],Tableau3[],2)*Tableau25[[#This Row],[Kilomètrages parcouru mars]],IF(Tableau25[[#This Row],[Kilomètrages parcouru mars]]<=20000,VLOOKUP(Tableau25[[#This Row],[nombre de cv]],Tableau3[],3)*Tableau25[[#This Row],[Kilomètrages parcouru mars]]+VLOOKUP(Tableau25[[#This Row],[nombre de cv]],Tableau3[],4),VLOOKUP(Tableau25[[#This Row],[nombre de cv]],Tableau3[],5)*Tableau25[[#This Row],[Kilomètrages parcouru mars]])),2)","v":280.14},{"$f":"ikv(Tableau25[[#This Row],[nombre de cv]],Tableau25[[#This Row],[Type véhicule]],Tableau25[[#This Row],[Kilomètrages parcouru mars]],Tableau3[])","v":280.14}]
["salarié 11",{"$f":"VLOOKUP(Tableau25[[#This Row],[salariés]],Tableau1[],2,0)","v":9},{"$f":"VLOOKUP(Tableau25[[#This Row],[salariés]],Tableau1[],3,0)","v":"diesel"},{"$f":"VLOOKUP(Tableau25[[#This Row],[salariés]],Tableau2[],2,0)","v":222},{"$f":"ROUND(IF(Tableau25[[#This Row],[Type véhicule]]=\"électrique\",1.2,1)*IF(Tableau25[[#This Row],[Kilomètrages parcouru mars]]<=5000,VLOOKUP(Tableau25[[#This Row],[nombre de cv]],Tableau3[],2)*Tableau25[[#This Row],[Kilomètrages parcouru mars]],IF(Tableau25[[#This Row],[Kilomètrages parcouru mars]]<=20000,VLOOKUP(Tableau25[[#This Row],[nombre de cv]],Tableau3[],3)*Tableau25[[#This Row],[Kilomètrages parcouru mars]]+VLOOKUP(Tableau25[[#This Row],[nombre de cv]],Tableau3[],4),VLOOKUP(Tableau25[[#This Row],[nombre de cv]],Tableau3[],5)*Tableau25[[#This Row],[Kilomètrages parcouru mars]])),2)","v":133.41999999999999},{"$f":"ikv(Tableau25[[#This Row],[nombre de cv]],Tableau25[[#This Row],[Type véhicule]],Tableau25[[#This Row],[Kilomètrages parcouru mars]],Tableau3[])","v":133.41999999999999}]
["salarié 12",{"$f":"VLOOKUP(Tableau25[[#This Row],[salariés]],Tableau1[],2,0)","v":4},{"$f":"VLOOKUP(Tableau25[[#This Row],[salariés]],Tableau1[],3,0)","v":"Essence"},{"$f":"VLOOKUP(Tableau25[[#This Row],[salariés]],Tableau2[],2,0)","v":212},{"$f":"ROUND(IF(Tableau25[[#This Row],[Type véhicule]]=\"électrique\",1.2,1)*IF(Tableau25[[#This Row],[Kilomètrages parcouru mars]]<=5000,VLOOKUP(Tableau25[[#This Row],[nombre de cv]],Tableau3[],2)*Tableau25[[#This Row],[Kilomètrages parcouru mars]],IF(Tableau25[[#This Row],[Kilomètrages parcouru mars]]<=20000,VLOOKUP(Tableau25[[#This Row],[nombre de cv]],Tableau3[],3)*Tableau25[[#This Row],[Kilomètrages parcouru mars]]+VLOOKUP(Tableau25[[#This Row],[nombre de cv]],Tableau3[],4),VLOOKUP(Tableau25[[#This Row],[nombre de cv]],Tableau3[],5)*Tableau25[[#This Row],[Kilomètrages parcouru mars]])),2)","v":110.88},{"$f":"ikv(Tableau25[[#This Row],[nombre de cv]],Tableau25[[#This Row],[Type véhicule]],Tableau25[[#This Row],[Kilomètrages parcouru mars]],Tableau3[])","v":110.88}]
["salarié 13",{"$f":"VLOOKUP(Tableau25[[#This Row],[salariés]],Tableau1[],2,0)","v":3},{"$f":"VLOOKUP(Tableau25[[#This Row],[salariés]],Tableau1[],3,0)","v":"électrique"},{"$f":"VLOOKUP(Tableau25[[#This Row],[salariés]],Tableau2[],2,0)","v":455},{"$f":"ROUND(IF(Tableau25[[#This Row],[Type véhicule]]=\"électrique\",1.2,1)*IF(Tableau25[[#This Row],[Kilomètrages parcouru mars]]<=5000,VLOOKUP(Tableau25[[#This Row],[nombre de cv]],Tableau3[],2)*Tableau25[[#This Row],[Kilomètrages parcouru mars]],IF(Tableau25[[#This Row],[Kilomètrages parcouru mars]]<=20000,VLOOKUP(Tableau25[[#This Row],[nombre de cv]],Tableau3[],3)*Tableau25[[#This Row],[Kilomètrages parcouru mars]]+VLOOKUP(Tableau25[[#This Row],[nombre de cv]],Tableau3[],4),VLOOKUP(Tableau25[[#This Row],[nombre de cv]],Tableau3[],5)*Tableau25[[#This Row],[Kilomètrages parcouru mars]])),2)","v":248.98},{"$f":"ikv(Tableau25[[#This Row],[nombre de cv]],Tableau25[[#This Row],[Type véhicule]],Tableau25[[#This Row],[Kilomètrages parcouru mars]],Tableau3[])","v":248.98}]
["salarié 14",{"$f":"VLOOKUP(Tableau25[[#This Row],[salariés]],Tableau1[],2,0)","v":10},{"$f":"VLOOKUP(Tableau25[[#This Row],[salariés]],Tableau1[],3,0)","v":"essence"},{"$f":"VLOOKUP(Tableau25[[#This Row],[salariés]],Tableau2[],2,0)","v":1021},{"$f":"ROUND(IF(Tableau25[[#This Row],[Type véhicule]]=\"électrique\",1.2,1)*IF(Tableau25[[#This Row],[Kilomètrages parcouru mars]]<=5000,VLOOKUP(Tableau25[[#This Row],[nombre de cv]],Tableau3[],2)*Tableau25[[#This Row],[Kilomètrages parcouru mars]],IF(Tableau25[[#This Row],[Kilomètrages parcouru mars]]<=20000,VLOOKUP(Tableau25[[#This Row],[nombre de cv]],Tableau3[],3)*Tableau25[[#This Row],[Kilomètrages parcouru mars]]+VLOOKUP(Tableau25[[#This Row],[nombre de cv]],Tableau3[],4),VLOOKUP(Tableau25[[#This Row],[nombre de cv]],Tableau3[],5)*Tableau25[[#This Row],[Kilomètrages parcouru mars]])),2)","v":613.62},{"$f":"ikv(Tableau25[[#This Row],[nombre de cv]],Tableau25[[#This Row],[Type véhicule]],Tableau25[[#This Row],[Kilomètrages parcouru mars]],Tableau3[])","v":613.62}]
["salarié 15",{"$f":"VLOOKUP(Tableau25[[#This Row],[salariés]],Tableau1[],2,0)","v":3},{"$f":"VLOOKUP(Tableau25[[#This Row],[salariés]],Tableau1[],3,0)","v":"électrique"},{"$f":"VLOOKUP(Tableau25[[#This Row],[salariés]],Tableau2[],2,0)","v":789},{"$f":"ROUND(IF(Tableau25[[#This Row],[Type véhicule]]=\"électrique\",1.2,1)*IF(Tableau25[[#This Row],[Kilomètrages parcouru mars]]<=5000,VLOOKUP(Tableau25[[#This Row],[nombre de cv]],Tableau3[],2)*Tableau25[[#This Row],[Kilomètrages parcouru mars]],IF(Tableau25[[#This Row],[Kilomètrages parcouru mars]]<=20000,VLOOKUP(Tableau25[[#This Row],[nombre de cv]],Tableau3[],3)*Tableau25[[#This Row],[Kilomètrages parcouru mars]]+VLOOKUP(Tableau25[[#This Row],[nombre de cv]],Tableau3[],4),VLOOKUP(Tableau25[[#This Row],[nombre de cv]],Tableau3[],5)*Tableau25[[#This Row],[Kilomètrages parcouru mars]])),2)","v":431.74},{"$f":"ikv(Tableau25[[#This Row],[nombre de cv]],Tableau25[[#This Row],[Type véhicule]],Tableau25[[#This Row],[Kilomètrages parcouru mars]],Tableau3[])","v":431.74}]
["salarié 16",{"$f":"VLOOKUP(Tableau25[[#This Row],[salariés]],Tableau1[],2,0)","v":10},{"$f":"VLOOKUP(Tableau25[[#This Row],[salariés]],Tableau1[],3,0)","v":"essence"},{"$f":"VLOOKUP(Tableau25[[#This Row],[salariés]],Tableau2[],2,0)","v":144},{"$f":"ROUND(IF(Tableau25[[#This Row],[Type véhicule]]=\"électrique\",1.2,1)*IF(Tableau25[[#This Row],[Kilomètrages parcouru mars]]<=5000,VLOOKUP(Tableau25[[#This Row],[nombre de cv]],Tableau3[],2)*Tableau25[[#This Row],[Kilomètrages parcouru mars]],IF(Tableau25[[#This Row],[Kilomètrages parcouru mars]]<=20000,VLOOKUP(Tableau25[[#This Row],[nombre de cv]],Tableau3[],3)*Tableau25[[#This Row],[Kilomètrages parcouru mars]]+VLOOKUP(Tableau25[[#This Row],[nombre de cv]],Tableau3[],4),VLOOKUP(Tableau25[[#This Row],[nombre de cv]],Tableau3[],5)*Tableau25[[#This Row],[Kilomètrages parcouru mars]])),2)","v":86.54},{"$f":"ikv(Tableau25[[#This Row],[nombre de cv]],Tableau25[[#This Row],[Type véhicule]],Tableau25[[#This Row],[Kilomètrages parcouru mars]],Tableau3[])","v":86.54}]
["salarié 17",{"$f":"VLOOKUP(Tableau25[[#This Row],[salariés]],Tableau1[],2,0)","v":6},{"$f":"VLOOKUP(Tableau25[[#This Row],[salariés]],Tableau1[],3,0)","v":"Essence"},{"$f":"VLOOKUP(Tableau25[[#This Row],[salariés]],Tableau2[],2,0)","v":604},{"$f":"ROUND(IF(Tableau25[[#This Row],[Type véhicule]]=\"électrique\",1.2,1)*IF(Tableau25[[#This Row],[Kilomètrages parcouru mars]]<=5000,VLOOKUP(Tableau25[[#This Row],[nombre de cv]],Tableau3[],2)*Tableau25[[#This Row],[Kilomètrages parcouru mars]],IF(Tableau25[[#This Row],[Kilomètrages parcouru mars]]<=20000,VLOOKUP(Tableau25[[#This Row],[nombre de cv]],Tableau3[],3)*Tableau25[[#This Row],[Kilomètrages parcouru mars]]+VLOOKUP(Tableau25[[#This Row],[nombre de cv]],Tableau3[],4),VLOOKUP(Tableau25[[#This Row],[nombre de cv]],Tableau3[],5)*Tableau25[[#This Row],[Kilomètrages parcouru mars]])),2)","v":346.7},{"$f":"ikv(Tableau25[[#This Row],[nombre de cv]],Tableau25[[#This Row],[Type véhicule]],Tableau25[[#This Row],[Kilomètrages parcouru mars]],Tableau3[])","v":346.7}]
["salarié 18",{"$f":"VLOOKUP(Tableau25[[#This Row],[salariés]],Tableau1[],2,0)","v":10},{"$f":"VLOOKUP(Tableau25[[#This Row],[salariés]],Tableau1[],3,0)","v":"essence"},{"$f":"VLOOKUP(Tableau25[[#This Row],[salariés]],Tableau2[],2,0)","v":22},{"$f":"ROUND(IF(Tableau25[[#This Row],[Type véhicule]]=\"électrique\",1.2,1)*IF(Tableau25[[#This Row],[Kilomètrages parcouru mars]]<=5000,VLOOKUP(Tableau25[[#This Row],[nombre de cv]],Tableau3[],2)*Tableau25[[#This Row],[Kilomètrages parcouru mars]],IF(Tableau25[[#This Row],[Kilomètrages parcouru mars]]<=20000,VLOOKUP(Tableau25[[#This Row],[nombre de cv]],Tableau3[],3)*Tableau25[[#This Row],[Kilomètrages parcouru mars]]+VLOOKUP(Tableau25[[#This Row],[nombre de cv]],Tableau3[],4),VLOOKUP(Tableau25[[#This Row],[nombre de cv]],Tableau3[],5)*Tableau25[[#This Row],[Kilomètrages parcouru mars]])),2)","v":13.22},{"$f":"ikv(Tableau25[[#This Row],[nombre de cv]],Tableau25[[#This Row],[Type véhicule]],Tableau25[[#This Row],[Kilomètrages parcouru mars]],Tableau3[])","v":13.22}]
["salarié 19",{"$f":"VLOOKUP(Tableau25[[#This Row],[salariés]],Tableau1[],2,0)","v":9},{"$f":"VLOOKUP(Tableau25[[#This Row],[salariés]],Tableau1[],3,0)","v":"diesel"},{"$f":"VLOOKUP(Tableau25[[#This Row],[salariés]],Tableau2[],2,0)","v":1010},{"$f":"ROUND(IF(Tableau25[[#This Row],[Type véhicule]]=\"électrique\",1.2,1)*IF(Tableau25[[#This Row],[Kilomètrages parcouru mars]]<=5000,VLOOKUP(Tableau25[[#This Row],[nombre de cv]],Tableau3[],2)*Tableau25[[#This Row],[Kilomètrages parcouru mars]],IF(Tableau25[[#This Row],[Kilomètrages parcouru mars]]<=20000,VLOOKUP(Tableau25[[#This Row],[nombre de cv]],Tableau3[],3)*Tableau25[[#This Row],[Kilomètrages parcouru mars]]+VLOOKUP(Tableau25[[#This Row],[nombre de cv]],Tableau3[],4),VLOOKUP(Tableau25[[#This Row],[nombre de cv]],Tableau3[],5)*Tableau25[[#This Row],[Kilomètrages parcouru mars]])),2)","v":607.01},{"$f":"ikv(Tableau25[[#This Row],[nombre de cv]],Tableau25[[#This Row],[Type véhicule]],Tableau25[[#This Row],[Kilomètrages parcouru mars]],Tableau3[])","v":607.01}]
["salarié 20",{"$f":"VLOOKUP(Tableau25[[#This Row],[salariés]],Tableau1[],2,0)","v":4},{"$f":"VLOOKUP(Tableau25[[#This Row],[salariés]],Tableau1[],3,0)","v":"Essence"},{"$f":"VLOOKUP(Tableau25[[#This Row],[salariés]],Tableau2[],2,0)","v":14},{"$f":"ROUND(IF(Tableau25[[#This Row],[Type véhicule]]=\"électrique\",1.2,1)*IF(Tableau25[[#This Row],[Kilomètrages parcouru mars]]<=5000,VLOOKUP(Tableau25[[#This Row],[nombre de cv]],Tableau3[],2)*Tableau25[[#This Row],[Kilomètrages parcouru mars]],IF(Tableau25[[#This Row],[Kilomètrages parcouru mars]]<=20000,VLOOKUP(Tableau25[[#This Row],[nombre de cv]],Tableau3[],3)*Tableau25[[#This Row],[Kilomètrages parcouru mars]]+VLOOKUP(Tableau25[[#This Row],[nombre de cv]],Tableau3[],4),VLOOKUP(Tableau25[[#This Row],[nombre de cv]],Tableau3[],5)*Tableau25[[#This Row],[Kilomètrages parcouru mars]])),2)","v":7.32},{"$f":"ikv(Tableau25[[#This Row],[nombre de cv]],Tableau25[[#This Row],[Type véhicule]],Tableau25[[#This Row],[Kilomètrages parcouru mars]],Tableau3[])","v":7.32}]
["salarié 21",{"$f":"VLOOKUP(Tableau25[[#This Row],[salariés]],Tableau1[],2,0)","v":6},{"$f":"VLOOKUP(Tableau25[[#This Row],[salariés]],Tableau1[],3,0)","v":"Essence"},{"$f":"VLOOKUP(Tableau25[[#This Row],[salariés]],Tableau2[],2,0)","v":473},{"$f":"ROUND(IF(Tableau25[[#This Row],[Type véhicule]]=\"électrique\",1.2,1)*IF(Tableau25[[#This Row],[Kilomètrages parcouru mars]]<=5000,VLOOKUP(Tableau25[[#This Row],[nombre de cv]],Tableau3[],2)*Tableau25[[#This Row],[Kilomètrages parcouru mars]],IF(Tableau25[[#This Row],[Kilomètrages parcouru mars]]<=20000,VLOOKUP(Tableau25[[#This Row],[nombre de cv]],Tableau3[],3)*Tableau25[[#This Row],[Kilomètrages parcouru mars]]+VLOOKUP(Tableau25[[#This Row],[nombre de cv]],Tableau3[],4),VLOOKUP(Tableau25[[#This Row],[nombre de cv]],Tableau3[],5)*Tableau25[[#This Row],[Kilomètrages parcouru mars]])),2)","v":271.5},{"$f":"ikv(Tableau25[[#This Row],[nombre de cv]],Tableau25[[#This Row],[Type véhicule]],Tableau25[[#This Row],[Kilomètrages parcouru mars]],Tableau3[])","v":271.5}]
["salarié 22",{"$f":"VLOOKUP(Tableau25[[#This Row],[salariés]],Tableau1[],2,0)","v":3},{"$f":"VLOOKUP(Tableau25[[#This Row],[salariés]],Tableau1[],3,0)","v":"électrique"},{"$f":"VLOOKUP(Tableau25[[#This Row],[salariés]],Tableau2[],2,0)","v":686},{"$f":"ROUND(IF(Tableau25[[#This Row],[Type véhicule]]=\"électrique\",1.2,1)*IF(Tableau25[[#This Row],[Kilomètrages parcouru mars]]<=5000,VLOOKUP(Tableau25[[#This Row],[nombre de cv]],Tableau3[],2)*Tableau25[[#This Row],[Kilomètrages parcouru mars]],IF(Tableau25[[#This Row],[Kilomètrages parcouru mars]]<=20000,VLOOKUP(Tableau25[[#This Row],[nombre de cv]],Tableau3[],3)*Tableau25[[#This Row],[Kilomètrages parcouru mars]]+VLOOKUP(Tableau25[[#This Row],[nombre de cv]],Tableau3[],4),VLOOKUP(Tableau25[[#This Row],[nombre de cv]],Tableau3[],5)*Tableau25[[#This Row],[Kilomètrages parcouru mars]])),2)","v":375.38},{"$f":"ikv(Tableau25[[#This Row],[nombre de cv]],Tableau25[[#This Row],[Type véhicule]],Tableau25[[#This Row],[Kilomètrages parcouru mars]],Tableau3[])","v":375.38}]
["salarié 23",{"$f":"VLOOKUP(Tableau25[[#This Row],[salariés]],Tableau1[],2,0)","v":6},{"$f":"VLOOKUP(Tableau25[[#This Row],[salariés]],Tableau1[],3,0)","v":"Essence"},{"$f":"VLOOKUP(Tableau25[[#This Row],[salariés]],Tableau2[],2,0)","v":608},{"$f":"ROUND(IF(Tableau25[[#This Row],[Type véhicule]]=\"électrique\",1.2,1)*IF(Tableau25[[#This Row],[Kilomètrages parcouru mars]]<=5000,VLOOKUP(Tableau25[[#This Row],[nombre de cv]],Tableau3[],2)*Tableau25[[#This Row],[Kilomètrages parcouru mars]],IF(Tableau25[[#This Row],[Kilomètrages parcouru mars]]<=20000,VLOOKUP(Tableau25[[#This Row],[nombre de cv]],Tableau3[],3)*Tableau25[[#This Row],[Kilomètrages parcouru mars]]+VLOOKUP(Tableau25[[#This Row],[nombre de cv]],Tableau3[],4),VLOOKUP(Tableau25[[#This Row],[nombre de cv]],Tableau3[],5)*Tableau25[[#This Row],[Kilomètrages parcouru mars]])),2)","v":348.99},{"$f":"ikv(Tableau25[[#This Row],[nombre de cv]],Tableau25[[#This Row],[Type véhicule]],Tableau25[[#This Row],[Kilomètrages parcouru mars]],Tableau3[])","v":348.99}]
["salarié 24",{"$f":"VLOOKUP(Tableau25[[#This Row],[salariés]],Tableau1[],2,0)","v":8},{"$f":"VLOOKUP(Tableau25[[#This Row],[salariés]],Tableau1[],3,0)","v":"diesel"},{"$f":"VLOOKUP(Tableau25[[#This Row],[salariés]],Tableau2[],2,0)","v":161},{"$f":"ROUND(IF(Tableau25[[#This Row],[Type véhicule]]=\"électrique\",1.2,1)*IF(Tableau25[[#This Row],[Kilomètrages parcouru mars]]<=5000,VLOOKUP(Tableau25[[#This Row],[nombre de cv]],Tableau3[],2)*Tableau25[[#This Row],[Kilomètrages parcouru mars]],IF(Tableau25[[#This Row],[Kilomètrages parcouru mars]]<=20000,VLOOKUP(Tableau25[[#This Row],[nombre de cv]],Tableau3[],3)*Tableau25[[#This Row],[Kilomètrages parcouru mars]]+VLOOKUP(Tableau25[[#This Row],[nombre de cv]],Tableau3[],4),VLOOKUP(Tableau25[[#This Row],[nombre de cv]],Tableau3[],5)*Tableau25[[#This Row],[Kilomètrages parcouru mars]])),2)","v":96.76},{"$f":"ikv(Tableau25[[#This Row],[nombre de cv]],Tableau25[[#This Row],[Type véhicule]],Tableau25[[#This Row],[Kilomètrages parcouru mars]],Tableau3[])","v":96.76}]
["salarié 25",{"$f":"VLOOKUP(Tableau25[[#This Row],[salariés]],Tableau1[],2,0)","v":3},{"$f":"VLOOKUP(Tableau25[[#This Row],[salariés]],Tableau1[],3,0)","v":"Essence"},{"$f":"VLOOKUP(Tableau25[[#This Row],[salariés]],Tableau2[],2,0)","v":471},{"$f":"ROUND(IF(Tableau25[[#This Row],[Type véhicule]]=\"électrique\",1.2,1)*IF(Tableau25[[#This Row],[Kilomètrages parcouru mars]]<=5000,VLOOKUP(Tableau25[[#This Row],[nombre de cv]],Tableau3[],2)*Tableau25[[#This Row],[Kilomètrages parcouru mars]],IF(Tableau25[[#This Row],[Kilomètrages parcouru mars]]<=20000,VLOOKUP(Tableau25[[#This Row],[nombre de cv]],Tableau3[],3)*Tableau25[[#This Row],[Kilomètrages parcouru mars]]+VLOOKUP(Tableau25[[#This Row],[nombre de cv]],Tableau3[],4),VLOOKUP(Tableau25[[#This Row],[nombre de cv]],Tableau3[],5)*Tableau25[[#This Row],[Kilomètrages parcouru mars]])),2)","v":214.78},{"$f":"ikv(Tableau25[[#This Row],[nombre de cv]],Tableau25[[#This Row],[Type véhicule]],Tableau25[[#This Row],[Kilomètrages parcouru mars]],Tableau3[])","v":214.78},null,"Function Ikv(CV As Integer, TypeV As String, Nbkm As Single, Bareme As Range)"]
["salarié 26",{"$f":"VLOOKUP(Tableau25[[#This Row],[salariés]],Tableau1[],2,0)","v":4},{"$f":"VLOOKUP(Tableau25[[#This Row],[salariés]],Tableau1[],3,0)","v":"Essence"},{"$f":"VLOOKUP(Tableau25[[#This Row],[salariés]],Tableau2[],2,0)","v":72},{"$f":"ROUND(IF(Tableau25[[#This Row],[Type véhicule]]=\"électrique\",1.2,1)*IF(Tableau25[[#This Row],[Kilomètrages parcouru mars]]<=5000,VLOOKUP(Tableau25[[#This Row],[nombre de cv]],Tableau3[],2)*Tableau25[[#This Row],[Kilomètrages parcouru mars]],IF(Tableau25[[#This Row],[Kilomètrages parcouru mars]]<=20000,VLOOKUP(Tableau25[[#This Row],[nombre de cv]],Tableau3[],3)*Tableau25[[#This Row],[Kilomètrages parcouru mars]]+VLOOKUP(Tableau25[[#This Row],[nombre de cv]],Tableau3[],4),VLOOKUP(Tableau25[[#This Row],[nombre de cv]],Tableau3[],5)*Tableau25[[#This Row],[Kilomètrages parcouru mars]])),2)","v":37.659999999999997},{"$f":"ikv(Tableau25[[#This Row],[nombre de cv]],Tableau25[[#This Row],[Type véhicule]],Tableau25[[#This Row],[Kilomètrages parcouru mars]],Tableau3[])","v":37.659999999999997},null,"    If Nbkm <= 5000 Then"]
["salarié 27",{"$f":"VLOOKUP(Tableau25[[#This Row],[salariés]],Tableau1[],2,0)","v":5},{"$f":"VLOOKUP(Tableau25[[#This Row],[salariés]],Tableau1[],3,0)","v":"électrique"},{"$f":"VLOOKUP(Tableau25[[#This Row],[salariés]],Tableau2[],2,0)","v":542},{"$f":"ROUND(IF(Tableau25[[#This Row],[Type véhicule]]=\"électrique\",1.2,1)*IF(Tableau25[[#This Row],[Kilomètrages parcouru mars]]<=5000,VLOOKUP(Tableau25[[#This Row],[nombre de cv]],Tableau3[],2)*Tableau25[[#This Row],[Kilomètrages parcouru mars]],IF(Tableau25[[#This Row],[Kilomètrages parcouru mars]]<=20000,VLOOKUP(Tableau25[[#This Row],[nombre de cv]],Tableau3[],3)*Tableau25[[#This Row],[Kilomètrages parcouru mars]]+VLOOKUP(Tableau25[[#This Row],[nombre de cv]],Tableau3[],4),VLOOKUP(Tableau25[[#This Row],[nombre de cv]],Tableau3[],5)*Tableau25[[#This Row],[Kilomètrages parcouru mars]])),2)","v":356.42},{"$f":"ikv(Tableau25[[#This Row],[nombre de cv]],Tableau25[[#This Row],[Type véhicule]],Tableau25[[#This Row],[Kilomètrages parcouru mars]],Tableau3[])","v":356.42},null,"    Ikv = Application.VLookup(CV, Bareme, 2) * Nbkm"]
["salarié 28",{"$f":"VLOOKUP(Tableau25[[#This Row],[salariés]],Tableau1[],2,0)","v":10},{"$f":"VLOOKUP(Tableau25[[#This Row],[salariés]],Tableau1[],3,0)","v":"essence"},{"$f":"VLOOKUP(Tableau25[[#This Row],[salariés]],Tableau2[],2,0)","v":345},{"$f":"ROUND(IF(Tableau25[[#This Row],[Type véhicule]]=\"électrique\",1.2,1)*IF(Tableau25[[#This Row],[Kilomètrages parcouru mars]]<=5000,VLOOKUP(Tableau25[[#This Row],[nombre de cv]],Tableau3[],2)*Tableau25[[#This Row],[Kilomètrages parcouru mars]],IF(Tableau25[[#This Row],[Kilomètrages parcouru mars]]<=20000,VLOOKUP(Tableau25[[#This Row],[nombre de cv]],Tableau3[],3)*Tableau25[[#This Row],[Kilomètrages parcouru mars]]+VLOOKUP(Tableau25[[#This Row],[nombre de cv]],Tableau3[],4),VLOOKUP(Tableau25[[#This Row],[nombre de cv]],Tableau3[],5)*Tableau25[[#This Row],[Kilomètrages parcouru mars]])),2)","v":207.35},{"$f":"ikv(Tableau25[[#This Row],[nombre de cv]],Tableau25[[#This Row],[Type véhicule]],Tableau25[[#This Row],[Kilomètrages parcouru mars]],Tableau3[])","v":207.34},null,"    ElseIf Nbkm <= 20000 Then"]
["salarié 29",{"$f":"VLOOKUP(Tableau25[[#This Row],[salariés]],Tableau1[],2,0)","v":8},{"$f":"VLOOKUP(Tableau25[[#This Row],[salariés]],Tableau1[],3,0)","v":"diesel"},{"$f":"VLOOKUP(Tableau25[[#This Row],[salariés]],Tableau2[],2,0)","v":553},{"$f":"ROUND(IF(Tableau25[[#This Row],[Type véhicule]]=\"électrique\",1.2,1)*IF(Tableau25[[#This Row],[Kilomètrages parcouru mars]]<=5000,VLOOKUP(Tableau25[[#This Row],[nombre de cv]],Tableau3[],2)*Tableau25[[#This Row],[Kilomètrages parcouru mars]],IF(Tableau25[[#This Row],[Kilomètrages parcouru mars]]<=20000,VLOOKUP(Tableau25[[#This Row],[nombre de cv]],Tableau3[],3)*Tableau25[[#This Row],[Kilomètrages parcouru mars]]+VLOOKUP(Tableau25[[#This Row],[nombre de cv]],Tableau3[],4),VLOOKUP(Tableau25[[#This Row],[nombre de cv]],Tableau3[],5)*Tableau25[[#This Row],[Kilomètrages parcouru mars]])),2)","v":332.35},{"$f":"ikv(Tableau25[[#This Row],[nombre de cv]],Tableau25[[#This Row],[Type véhicule]],Tableau25[[#This Row],[Kilomètrages parcouru mars]],Tableau3[])","v":332.35},null,"    Ikv = (Application.VLookup(CV, Bareme, 3) * Nbkm + Application.VLookup(CV, Bareme, 4))"]
["salarié 30",{"$f":"VLOOKUP(Tableau25[[#This Row],[salariés]],Tableau1[],2,0)","v":9},{"$f":"VLOOKUP(Tableau25[[#This Row],[salariés]],Tableau1[],3,0)","v":"diesel"},{"$f":"VLOOKUP(Tableau25[[#This Row],[salariés]],Tableau2[],2,0)","v":869},{"$f":"ROUND(IF(Tableau25[[#This Row],[Type véhicule]]=\"électrique\",1.2,1)*IF(Tableau25[[#This Row],[Kilomètrages parcouru mars]]<=5000,VLOOKUP(Tableau25[[#This Row],[nombre de cv]],Tableau3[],2)*Tableau25[[#This Row],[Kilomètrages parcouru mars]],IF(Tableau25[[#This Row],[Kilomètrages parcouru mars]]<=20000,VLOOKUP(Tableau25[[#This Row],[nombre de cv]],Tableau3[],3)*Tableau25[[#This Row],[Kilomètrages parcouru mars]]+VLOOKUP(Tableau25[[#This Row],[nombre de cv]],Tableau3[],4),VLOOKUP(Tableau25[[#This Row],[nombre de cv]],Tableau3[],5)*Tableau25[[#This Row],[Kilomètrages parcouru mars]])),2)","v":522.27},{"$f":"ikv(Tableau25[[#This Row],[nombre de cv]],Tableau25[[#This Row],[Type véhicule]],Tableau25[[#This Row],[Kilomètrages parcouru mars]],Tableau3[])","v":522.27},null,"    Else: Ikv = (Application.VLookup(CV, Bareme, 5) * Nbkm)"]
[null,null,"totaux",{"$f":"SUM(D4:D33)","v":13459},{"$f":"SUM(E4:E33)","v":7853.2000000000007},{"$f":"SUM(F4:F33)","v":7853.18},null,"    End If"]
[null,null,null,null,null,null,null,"    If TypeV = \"électrique\" Then"]
[null,null,null,null,null,null,null,"    Ikv = Ikv * 1.2"]
[null,null,null,null,null,null,null,"    End If"]
[null,null,null,null,null,null,null,"    Ikv = Round(Ikv, 2)"]
[null,null,null,null,null,null,null,"End Function"]

{"sheet":"salariés","index":3,"n_rows":31,"n_cols":3,"rows_kept":31,"cut":false,"hidden":false,"merged":[]}
["salariés","nombre de cv","Type véhicule"]
["salarié 1",3,"Essence"]
["salarié 2",5,"électrique"]
["salarié 3",4,"Essence"]
["salarié 4",6,"Essence"]
["salarié 5",8,"diesel"]
["salarié 6",10,"diesel"]
["salarié 7",7,"diesel"]
["salarié 8",3,"Essence"]
["salarié 9",10,"diesel"]
["salarié 10",5,"électrique"]
["salarié 11",9,"diesel"]
["salarié 12",4,"Essence"]
["salarié 13",3,"électrique"]
["salarié 14",10,"essence"]
["salarié 15",3,"électrique"]
["salarié 16",10,"essence"]
["salarié 17",6,"Essence"]
["salarié 18",10,"essence"]
["salarié 19",9,"diesel"]
["salarié 20",4,"Essence"]
["salarié 21",6,"Essence"]
["salarié 22",3,"électrique"]
["salarié 23",6,"Essence"]
["salarié 24",8,"diesel"]
["salarié 25",3,"Essence"]
["salarié 26",4,"Essence"]
["salarié 27",5,"électrique"]
["salarié 28",10,"essence"]
["salarié 29",8,"diesel"]
["salarié 30",9,"diesel"]

{"sheet":"barèmes","index":4,"n_rows":12,"n_cols":11,"rows_kept":12,"cut":false,"hidden":false,"merged":[[1,0,2,5]]}
["Voiture - Urssaf.fr"]
["Le barème fiscal des indemnités kilométriques permet l’évaluation des frais de déplacement relatifs à l’utilisation d’un véhicule par les salariés optant pour le régime des frais réels déductibles. Ce barème est diffusé par un arrêté du 15 février 2021."]
[]
[null,"Kilométrage parcouru à titre professionnel"]
["Puissance fiscale","Jusqu’à 5 000 km","De 5 001 à 20 000 km","Au-delà de 20 000 km",null,null,"cv","<=5000",">5000 et <=20000","Colonne2",">20000"]
["3 cv et moins","d x 0,456","(d x 0,273) + 915","d x 0,318",null,null,0,0.45600000000000002,0.27300000000000002,915,0.318]
["4 cv","d x 0,523","(d x 0,294) + 1 147","d x 0,352",null,null,4,0.52300000000000002,0.29399999999999998,1147,0.35199999999999998]
["5 cv","d x 0,548","(d x 0,308) + 1 200","d x 0,368",null,null,5,0.54800000000000004,0.308,1200,0.36799999999999999]
["6 cv","d x 0,574","(d x 0,323) + 1 256","d x 0,386",null,null,6,0.57399999999999995,0.32300000000000001,1256,0.38600000000000001]
["7 cv et plus","d x 0,601","(d x 0,340) + 1 301","d x 0,405",null,null,7,0.60099999999999998,0.34,1301,0.40500000000000003]
["d = distance parcourue à titre professionnel en km",null,null,null,"cv: chevaux fiscaux"]
["Pour les véhicules électriques, le montant des frais de déplacement est majoré de 20 %."]